[Event "1st FIDE Olympiad DIS 2023"]
[Site "Belgrade"]
[Date "2023.01.30"]
[Round "1.9"]
[White "Bjelanovic, Mile"]
[Black "Glazar, Domagoj"]
[Result "1/2-1/2"]
[ECO "B02"]
[WhiteElo "2021"]
[BlackElo "2119"]
[Annotator "TA"]
[PlyCount "62"]
[EventDate "2023.01.30"]
[EventType "team-tourn"]
[EventCountry "SRB"]
[SourceTitle "playchess.com"]
[Source "ChessBase"]
[SourceQuality "1"]
[WhiteTeam "Serbia"]
[BlackTeam "Croatia"]
[WhiteTeamCountry "SRB"]
[BlackTeamCountry "CRO"]
[TimeControl "40/5400+30:1800+30"]

{[%evp 17,62,-7,-8,-16,-2,-23,-16,-23,-29,-35,-23,-21,-19,-28,-15,-17,-11,-18,-8,-10,20,2,25,6,18,0,66,56,105,121,253,243,274,247,339,315,328,247,304,299,293,264,317,0,207,0,309]} 1. e4 {[%emt 0:00:16]} c5 {[%emt 0:00:14]} 2. Nf3 {[%emt 0:00:34]} Nf6 {[%emt 0:00:19]} 3. e5 {[%emt 0:01:13]} Nd5 {[%emt 0:00:22]} 4. Nc3 {[%emt 0:00:30]} e6 {[%emt 0:00:28]} 5. Nxd5 {[%emt 0:01:08]} exd5 {[%emt 0:00:23]} 6. d4 {[%emt 0:01:15]} Nc6 {[%emt 0:00:57]} 7. c3 {[%emt 0:00:00]} cxd4 {[%emt 0:02:31]} 8. cxd4 {[%emt 0:00:04]} d6 {[%emt 0:00:53]} 9. Be2 {[%emt 0:07:36]} dxe5 {[%emt 0:02:53]} 10. Nxe5 {[%emt 0:11:06] B02: Alekhine's Defence: Chase Variation and lines with early Nc3.} Bd6 {[%emt 0:03:09]} 11. Nxc6 {[%emt 0:03:33]} bxc6 {[%emt 0:00:13]} 12. O-O {[%emt 0:00:38]} O-O {[%emt 0:00:45]} 13. Be3 {[%emt 0:06:26] [#]} a5 $146 {[%emt 0:02:46]} ({Predecessor:} 13... Re8 14. Rc1 Rxe3 15. fxe3 Qh4 16. g3 Bxg3 17. hxg3 Qxg3+ 18. Kh1 Qh3+ 19. Kg1 Qg3+ 20. Kh1 Qh3+ 21. Kg1 Qg3+ {½-½ Steinberg,N (2554)-Yuffa,D (2594) Molodezhka-ISR online blitz 2020}) 14. Qc2 {[%emt 0:03:10]} Bd7 {[%emt 0:01:15]} 15. Bd3 {[%emt 0:08:26]} Qh4 {[%emt 0:03:38][%csl Gd6][%cal Rh4h2] [#]} 16. g3 {[%emt 0:01:38]} Qh3 {[%emt 0:00:32]} 17. Rfe1 {[%emt 0:02:22]} f5 {[%emt 0:02:24]} 18. f4 {[%emt 0:06:23]} Qh5 {[%emt 0:08:09]} (18... h5 {simplifies} 19. Qg2 Qxg2+ 20. Kxg2 Kf7) 19. Kg2 {[%emt 0:06:13]} g5 {[%emt 0:10:22]} 20. Rf1 {[%emt 0:04:09]} g4 {[%emt 0:02:24]} 21. Rh1 {[%emt 0:01:46]} (21. Rfe1 {seems wilder.} Rfc8 22. Rab1 a4 23. Qf2) 21... Qf7 {[%emt 0:03:12]} ({Black should play} 21... Qh3+ $11 22. Kg1 Rfe8) 22. h3 $14 {[%emt 0:01:34]} h5 {[%emt 0:00:54]} (22... Qe7 $14 {should be considered.} 23. Rae1 gxh3+ 24. Rxh3 Rf6) 23. hxg4 $16 {[%emt 0:00:39]} hxg4 {[%emt 0:00:49]} (23... Rfe8 $16) 24. Rh6 $18 {[%emt 0:02:05] [#] And now Rah1 would win.} Qe7 {[%emt 0:01:15]} 25. Bf2 {[%emt 0:01:00]} Rf6 {[%emt 0:04:38]} 26. Rh5 {[%emt 0:01:48]} Raf8 {[%emt 0:08:15]} 27. Rah1 {[%emt 0:00:04]} Qe6 {[%emt 0:00:00]} 28. Rh8+ {[%emt 0:02:27]} Kf7 {[%emt 0:01:01]} 29. R8h7+ {[%emt 0:01:34]} Kg8 {[%emt 0:00:22]} 30. Rh8+ {[%emt 0:00:50]} Kf7 {[%emt 0:00:13]} 31. R8h7+ {[%emt 0:00:22]} (31. R8h2 $142 {Hoping for Re1.} Rg6 32. Rh5) 31... Kg8 $1 {[%emt 0:00:02][%mdl 32768] Weighted Error Value: White=0.40/Black=0.26 (precise) . An unexpected result.} 1/2-1/2

[Event "1st FIDE Olympiad DIS 2023"]
[Site "Belgrade"]
[Date "2023.01.30"]
[Round "1.9"]
[White "Miheso, Clement Chomu"]
[Black "Bursuc, Mihai"]
[Result "0-1"]
[ECO "E73"]
[WhiteElo "1615"]
[BlackElo "1823"]
[Annotator "NA RC COMBH"]
[PlyCount "92"]
[EventDate "2023.01.30"]
[EventType "team-tourn"]
[EventCountry "SRB"]
[SourceTitle "playchess.com"]
[Source "ChessBase"]
[SourceQuality "1"]
[WhiteTeam "Kenya"]
[BlackTeam "Romania"]
[WhiteTeamCountry "KEN"]
[BlackTeamCountry "ROU"]
[TimeControl "40/5400+30:1800+30"]

1. d4 {[%emt 0:00:14]} Nf6 {[%emt 0:00:12]} 2. c4 {[%emt 0:00:32]} g6 {[%emt 0:00:38]} 3. Nc3 {[%emt 0:00:32]} Bg7 {[%emt 0:00:22]} 4. e4 {[%emt 0:01:13]} d6 {[%emt 0:00:32]} 5. Be2 {[%emt 0:01:29]} O-O {[%emt 0:01:26]} 6. h3 {[%emt 0:01:39]} e5 {[%emt 0:02:44]} 7. d5 {[%emt 0:01:42]} a5 {[%emt 0:00:50]} 8. a3 {[%emt 0:04:19]} Nbd7 {[%emt 0:01:39]} 9. Be3 {[%emt 0:01:44]} Ne8 {[%emt 0:01:50]} 10. Bd3 {[%emt 0:03:00]} f5 {[%emt 0:01:21]} 11. exf5 {[%emt 0:04:24]} gxf5 {[%emt 0:00:15]} 12. f3 {[%emt 0:02:51]} Nc5 {[%emt 0:03:21]} 13. Bxc5 {[%emt 0:05:59]} dxc5 {[%emt 0:00:10]} 14. Qd2 {[%emt 0:01:26]} Nd6 {[%emt 0:00:25]} 15. Nge2 {[%emt 0:03:53]} Bd7 {[%emt 0:03:01]} 16. O-O {[%emt 0:01:14]} Qh4 {[%emt 0:03:12]} 17. Qe3 {[%emt 0:03:10] [#]} b6 $1 {[%emt 0:01:17]} ({Weaker is} 17... Nxc4 18. Qxc5 Nxb2 19. Bb5 $15 (19. Qxc7 Qd8 $17)) 18. Qf2 {[%emt 0:01:51]} (18. Rad1 $17) 18... Qh6 {[%emt 0:04:37]} 19. f4 {[%emt 0:06:50]} e4 {[%emt 0:00:26] Deflection} 20. Bc2 {[%emt 0:01:45]} Nxc4 {[%emt 0:00:37]} 21. b3 {[%emt 0:03:07]} Nd6 {[%emt 0:00:37]} 22. Rad1 {[%emt 0:00:35]} Rae8 {[%emt 0:01:14]} 23. Kh1 {[%emt 0:00:46]} Rf7 {[%emt 0:01:38]} 24. Nb1 {[%emt 0:02:41]} Kh8 {[%emt 0:03:58]} 25. a4 {[%emt 0:02:50]} Rg8 {[%emt 0:00:53]} 26. Rde1 {[%emt 0:01:56]} Bf6 {[%emt 0:00:26]} 27. Qe3 {[%emt 0:03:04]} Rfg7 {[%emt 0:00:24]} 28. Rg1 {[%emt 0:01:06]} Bh4 {[%emt 0:05:34]} 29. Rd1 {[%emt 0:03:34]} Nf7 {[%emt 0:02:11]} 30. Nd2 {[%emt 0:01:23]} Ne5 {[%emt 0:00:56]} 31. Qc3 {[%emt 0:09:54] [#]} Ng4 $1 {[%emt 0:00:34]} 32. Rc1 {[%emt 0:02:50]} Bf6 $19 {[%emt 0:02:26]} 33. Qg3 {[%emt 0:03:27]} e3 {[%emt 0:01:04]} 34. Qf3 {[%emt 0:08:23]} Nf2+ {[%emt 0:01:46]} 35. Kh2 {[%emt 0:00:13]} exd2 {[%emt 0:00:15]} 36. Rcf1 {[%emt 0:01:26]} d1=Q {[%emt 0:03:09]} 37. Bxd1 {[%emt 0:01:17]} Ne4 {[%emt 0:02:15]} 38. Qd3 {[%emt 0:04:15]} Ng3 {[%emt 0:00:00]} 39. Nxg3 {[%emt 0:02:47]} Rxg3 {[%emt 0:00:26]} 40. Qxg3 {[%emt 0:02:35]} Rxg3 {[%emt 0:00:00]} 41. Kxg3 {[%emt 0:00:30]} Bd4 {[%emt 0:00:54]} 42. Rh1 {[%emt 0:31:35]} Qd6 {[%emt 0:29:28]} 43. Bf3 {[%emt 0:03:48]} Be3 {[%emt 0:00:20]} 44. Be2 {[%emt 0:00:00]} Qxd5 {[%emt 0:00:00]} 45. Rd1 {[%emt 0:00:00]} Bd4 {[%emt 0:00:00]} 46. Bf3 {[%emt 0:00:00]} Qxb3 {[%emt 0:00:00]} 0-1

[Event "1st FIDE Olympiad DIS 2023"]
[Site "Belgrade"]
[Date "2023.01.30"]
[Round "1.10"]
[White "Nestorovic, Vladimir"]
[Black "Mitrovic, Stefan"]
[Result "0-1"]
[ECO "A54"]
[WhiteElo "2171"]
[BlackElo "1807"]
[Annotator "TA"]
[PlyCount "156"]
[EventDate "2023.01.30"]
[EventType "team-tourn"]
[EventCountry "SRB"]
[SourceTitle "playchess.com"]
[Source "ChessBase"]
[SourceQuality "1"]
[WhiteTeam "Croatia"]
[BlackTeam "Serbia"]
[WhiteTeamCountry "CRO"]
[BlackTeamCountry "SRB"]
[TimeControl "40/5400+30:1800+30"]

{[%evp 14,156,39,50,46,12,28,24,27,34,31,18,32,10,60,47,62,22,39,0,58,-20,28,-35,-35,-49,-42,-67,-65,-75,-79,-95,-95,-144,-147,-269,-266,-259,-259,-259,-235,-235,-232,-220,-215,-231,-215,-215,-215,-215,-215,-272,-274,-306,-293,-338,-250,-250,-250,-250,-250,-261,-229,-254,-207,-422,-207,-252,-207,-207,0,-513,-504,-490,-483,-327,-518,-560,-574,-600,-566,-563,-570,-603,-566,-520,-525,-512,-472,-510,-485,-544,-631,-628,-612,-656,-565,-648,-651,-681,-533,-691,-679,-693,-491,-687,-491,-595,0,-682,-661,-661,-631,-641,-631,-605,-557,-614,-614,-3270,-29952,-29953,-29954,-29955,-29955,-29949,-29953,-29971,-10853,-29958,-29957,-29941,-12827,-6099,-4134,-29977,-29978,-29977,-29978,-29978,-29979,-29979,-29980,-29977,-11897]} 1. Nf3 {[%emt 0:00:11]} Nf6 {[%emt 0:00:26]} 2. d4 d6 {[%emt 0:00:13]} 3. c4 {[%emt 0:00:44]} Nbd7 {[%emt 0:00:16]} 4. Nc3 {[%emt 0:00:49]} e5 {[%emt 0:00:28]} 5. e3 {[%emt 0:01:07]} Be7 {[%emt 0:01:41]} 6. Be2 {[%emt 0:00:48]} O-O {[%emt 0:00:28]} 7. O-O {[%emt 0:00:15]} c6 {[%emt 0:00:59]} 8. Qc2 {[%emt 0:01:12]} a6 {[%emt 0:01:05] A54: Old Indian Defence with Nf3, but without e4.} 9. a4 {[%emt 0:00:41]} a5 {[%emt 0:00:20]} 10. b3 {[%emt 0:00:16]} Qc7 {[%emt 0:03:34] White has an edge.} 11. Bb2 {[%emt 0:01:51]} Re8 {[%emt 0:01:39]} 12. Rfd1 {[%emt 0:00:20] [#]} h6 $146 {[%emt 0:01:58]} ({Predecessor:} 12... Bf8 13. Rac1 Nb8 14. c5 exd4 15. cxd6 Bxd6 16. Rxd4 Qe7 17. Rcd1 Bc5 18. Rc4 Na6 {1-0 Gerstenberger,H (2150)-Strobel,M (2086) Oberliga Wuerttemberg 1011 2010 (1)}) 13. Rac1 {[%emt 0:00:19]} Nf8 {[%emt 0:07:30]} (13... exd4 $11 14. exd4 (14. Nxd4 Nc5 $11) 14... Nb8) 14. h3 $14 {[%emt 0:00:47]} N8h7 {[%emt 0:13:38]} 15. e4 {[%emt 0:10:11]} Nd7 {[%emt 0:06:23]} 16. Nb1 {[%emt 0:07:07]} Bf6 {[%emt 0:04:22]} (16... exd4 $11 17. Bxd4 (17. Nxd4 Nc5 $15) 17... Nc5) 17. Nbd2 {[%emt 0:05:30]} (17. c5 $14) 17... b6 {[%emt 0:04:04]} (17... exd4 {is more appropriate.} 18. Bxd4 Bxd4 19. Nxd4 Nc5) 18. dxe5 {[%emt 0:04:35]} ({Better is} 18. d5 $11) 18... dxe5 $15 {[%emt 0:05:17]} 19. Ba3 Be7 {[%emt 0:06:10] Dodges c5} 20. Bxe7 {[%emt 0:01:23]} Rxe7 {[%emt 0:00:22]} 21. Nf1 {[%emt 0:02:56]} Nc5 {[%emt 0:00:55]} 22. Ne1 {[%emt 0:00:32]} Ng5 {[%emt 0:02:34][%cal Bh7g5,Bg5e6,Be6d4][%mdl 32]} 23. f3 {[%emt 0:00:12]} (23. Ng3 $142) 23... Nge6 $1 $17 {[%emt 0:02:25] Black is much more active.} 24. Rd2 {[%emt 0:00:54]} (24. Qb2 $17 {was called for.}) 24... Nd4 $19 {[%emt 0:00:48]} 25. Rxd4 {[%emt 0:04:56]} exd4 {[%emt 0:00:00]} 26. Nd3 {[%emt 0:00:15]} Nxd3 {[%emt 0:01:44]} 27. Bxd3 {[%emt 0:00:05]} c5 {[%emt 0:00:00]} 28. Qf2 {[%emt 0:02:12]} Bb7 {[%emt 0:09:50]} 29. Rd1 {[%emt 0:01:22]} Rf8 {[%emt 0:02:10]} 30. Ng3 {[%emt 0:03:28]} g6 {[%emt 0:04:03]} 31. f4 {[%emt 0:01:35]} Qc6 {[%emt 0:08:18]} 32. f5 {[%emt 0:04:05]} Qf6 {[%emt 0:01:03]} 33. Rf1 {[%emt 0:00:38]} Ree8 {[%emt 0:03:35]} 34. Re1 {[%emt 0:05:29]} h5 {[%emt 0:01:01]} 35. Qf4 {[%emt 0:02:12] [#]} Re5 $1 {[%emt 0:03:39] Strongly threatening ...h4.} 36. h4 {[%emt 0:00:43]} Rfe8 {[%emt 0:01:18]} 37. Rf1 {[%emt 0:00:13]} Bc6 {[%emt 0:02:59]} 38. Rf2 {[%emt 0:06:58]} R8e7 {[%emt 0:01:08]} 39. Qh6 $2 {[%emt 0:01:08]} (39. Rf3 {was necessary.}) 39... Qh8 {[%emt 0:01:33]} (39... Qxh4 $2 40. f6 $18) (39... Bxe4 $142 40. Nxe4 Rxe4 41. Bxe4 Rxe4) 40. Qg5 {[%emt 0:00:26]} Rd7 {[%emt 0:02:00]} 41. Qf4 {[%emt 0:31:34]} Rde7 $2 {[%emt 0:01:24]} ({Black should play} 41... Qf6 $19 {Hoping for ...Kg7.} 42. fxg6 Qxf4 43. Rxf4 fxg6) 42. fxg6 $2 {[%emt 0:02:27][%mdl 8192]} (42. Qg5 $1 $11 {and White is okay.} Kf8 43. Qf4) 42... fxg6 {[%emt 0:00:11]} 43. Qf8+ {[%emt 0:00:00]} Kh7 {[%emt 0:00:46][%cal Bg8h7,Bh7h8,Bh8g7][%mdl 32]} 44. Qxh8+ {[%emt 0:00:00]} Kxh8 {[%emt 0:00:13]} 45. Rf8+ {[%emt 0:00:00]} Kg7 {[%emt 0:00:23]} 46. Rb8 {[%emt 0:00:00]} Rb7 {[%emt 0:01:31]} 47. Rd8 {[%emt 0:00:00]} Bd7 {[%emt 0:01:39]} 48. Ne2 {[%emt 0:00:00]} Re8 {[%emt 0:02:05] Prevents Nf4.} 49. Rxe8 {[%emt 0:00:00]} Bxe8 {[%emt 0:00:00][%mdl 4096] Endgame KRB-KBN} 50. Nf4 {[%emt 0:00:00]} Re7 {[%emt 0:02:38]} 51. Kf2 {[%emt 0:00:00]} Bc6 {[%emt 0:04:55]} 52. Kf3 {[%emt 0:00:00]} Bd7 {[%emt 0:02:24]} 53. Kg3 {[%emt 0:00:14]} Bg4 {[%emt 0:00:34]} 54. Nd5 {[%emt 0:00:21]} Re6 {[%emt 0:01:33]} 55. Nf4 {[%emt 0:01:06]} Re8 {[%emt 0:03:04]} 56. Bc2 {[%emt 0:00:53]} Rb8 {[%emt 0:05:46] ...Kh6 would be deadly.} 57. Kf2 {[%emt 0:00:23]} Kf6 {[%emt 0:00:44]} 58. g3 {[%emt 0:00:51]} Be6 {[%emt 0:00:33]} 59. Kf3 {[%emt 0:02:59]} Bf7 {[%emt 0:01:20]} 60. Nd3 {[%emt 0:00:28]} Be6 {[%emt 0:01:26]} 61. Nf4 $1 {[%emt 0:00:59]} Rd8 {[%emt 0:00:00]} 62. Kf2 Rf8 {[%emt 0:00:45] ...Ke5 is the strong threat.} 63. Ke1 {[%emt 0:01:33][%cal Oe4e5]} Re8 {[%emt 0:00:57]} 64. Kf2 {[%emt 0:01:33]} Rg8 65. Bd1 {[%emt 0:02:39]} Ke5 {[%emt 0:01:44] And now ...Rf8 would win.} 66. Bc2 {[%emt 0:02:05]} Rf8 {[%emt 0:00:21]} 67. Bd3 {[%emt 0:07:19]} Bg4 {[%emt 0:00:43]} 68. Bc2 {[%emt 0:00:18]} Rxf4+ {[%emt 0:00:25]} 69. gxf4+ {[%emt 0:00:22]} Kxf4 {[%emt 0:00:11] KB-KB} 70. e5 {[%emt 0:00:26]} Kxe5 {[%emt 0:00:28]} (70... g5 $142 71. hxg5 Kxg5 72. b4 axb4 73. Kg3 h4+ 74. Kg2 Kf4 75. e6 Bxe6 76. Kh2 Bxc4 77. Bh7 d3 78. a5 bxa5 79. Kh3 b3 80. Kxh4 b2 81. Kh5 b1=Q 82. Kh6 Qh1+ 83. Kg7 Qa1+ 84. Kh6 Qf6+ 85. Bg6 Bg8 86. Kh5 Qg5#) 71. Bxg6 Kf4 {[%emt 0:00:17]} 72. Bc2 {[%emt 0:02:08]} Bf5 {[%emt 0:00:33]} 73. Bd1 {[%emt 0:00:16]} Bg6 {[%emt 0:00:31] ( -> ...d3)} 74. Bf3 {[%emt 0:02:51]} d3 {[%emt 0:00:36][%cal Bd4d3,Bd3d2][%mdl 32] Black mates.} 75. Bd1 {[%emt 0:00:55]} Ke4 {[%emt 0:00:56]} 76. Bf3+ {[%emt 0:02:02] [#]} Kd4 $1 {[%emt 0:00:29]} 77. Bd1 {[%emt 0:00:20]} Kc3 {[%emt 0:01:56]} 78. Ke3 {[%emt 0:00:17]} d2 {[%emt 0:00:00] Weighted Error Value: White=0.41/Black=0.45} 0-1

[Event "1st FIDE Olympiad DIS 2023"]
[Site "Belgrade"]
[Date "2023.01.30"]
[Round "1.10"]
[White "Pribeanu, Mihail-Dacian"]
[Black "Sadam Ali Sheikh"]
[Result "1-0"]
[ECO "C41"]
[WhiteElo "2134"]
[BlackElo "1578"]
[Annotator "TA"]
[PlyCount "71"]
[EventDate "2023.01.30"]
[EventType "team-tourn"]
[EventCountry "SRB"]
[SourceTitle "playchess.com"]
[Source "ChessBase"]
[SourceQuality "1"]
[WhiteTeam "Romania"]
[BlackTeam "Kenya"]
[WhiteTeamCountry "ROU"]
[BlackTeamCountry "KEN"]
[TimeControl "40/5400+30:1800+30"]

{[%evp 13,71,36,51,15,33,20,108,53,64,42,24,22,105,96,131,105,119,94,106,69,146,75,387,402,747,708,694,693,752,768,1224,1128,1809,1819,1769,1726,3132,3347,29989,29990,29992,29992,29993,29992,29991,29992,29993,29994,29994,29993,29993,29994,29995,29996,29996,29996,29996,29996,29997,29997]} 1. e4 {[%emt 0:00:14]} d6 {[%emt 0:00:27]} 2. d4 {[%emt 0:00:20]} Nf6 {[%emt 0:01:12]} 3. Nc3 {[%emt 0:00:20]} Nbd7 {[%emt 0:02:13]} 4. Nf3 {[%emt 0:03:58]} e5 {[%emt 0:00:51]} 5. Bc4 {[%emt 0:00:48]} Be7 {[%emt 0:01:33]} 6. O-O {[%emt 0:00:39]} c6 {[%emt 0:01:27]} 7. a4 {[%emt 0:00:49]} h6 {[%emt 0:01:30] is now more promising than 7...0-0.} 8. b3 {[%emt 0:01:05] C41: Philidor Defence.} Qc7 {[%emt 0:00:18]} 9. Bb2 {[%emt 0:01:24]} g5 {[%emt 0:18:19]} (9... O-O $11 {keeps the balance.}) 10. dxe5 {[%emt 0:00:02] [#] White is more active.} (10. Re1 $16) 10... Nxe5 $146 {[%emt 0:06:48]} ({Predecessor:} 10... dxe5 11. Qe2 Nb6 12. a5 Nxc4 13. Qxc4 Bd6 14. Rfd1 Be6 15. Qa4 O-O-O 16. Ba3 Bxa3 17. Qxa3 {½-½ Ellinger,P (2440)-Kuiper,J (2470) ICCF MN/47 corr 1997}) 11. Be2 {[%emt 0:00:02]} Be6 {[%emt 0:00:00]} 12. Nd4 {[%emt 0:01:17]} Bg4 {[%emt 0:00:00]} (12... O-O-O $11) 13. Bxg4 $16 {[%emt 0:02:11]} Nfxg4 {[%emt 0:11:42]} 14. Nf5 {[%emt 0:00:02]} O-O-O {[%emt 0:00:00]} 15. a5 {[%emt 0:09:20][%cal Ba4a5,Ba5a6][%mdl 32]} h5 {[%emt 0:00:00][%cal Od6d5]} 16. Qe2 {[%emt 0:08:38]} Rh7 {[%emt 0:00:00]} (16... Bf6 $14) 17. b4 {[%emt 0:26:21]} ({Better is} 17. Rfd1) 17... Qd7 $2 {[%emt 0:00:00][%mdl 8192] Black cannot hold the game after this.} (17... d5 $16 {is more resistant.} 18. Nxe7+ Qxe7) 18. b5 $18 {[%emt 0:10:26]} Qe6 {[%emt 0:13:54]} (18... f6 $142 19. bxc6 Nxc6) 19. a6 {[%emt 0:01:05] [#] Strongly threatening axb7+.} b6 {[%emt 0:01:48]} 20. bxc6 {[%emt 0:01:51]} Nxc6 {[%emt 0:00:29]} 21. Nd5 {[%emt 0:01:12] Hoping for Qc4.} Bf6 {[%emt 0:07:55] Repels Qc4} 22. Qb5 {[%emt 0:04:42]} Kd7 {[%emt 0:08:12]} 23. Bxf6 {[%emt 0:01:57][%mdl 64] [#] Remove Defender} Nxf6 {[%emt 0:00:25]} 24. Nd4 {[%emt 0:00:45][%csl Gd4][%cal Rb5c6,Bf5d4,Bd4b5,Bb5d6][%mdl 32]} Qxd5 {[%emt 0:10:19]} 25. exd5 {[%emt 0:00:24][%mdl 64] Rfe1 would kill now. Pin} Rc8 {[%emt 0:02:14]} 26. dxc6+ {[%emt 0:00:13] White mates.} Kc7 {[%emt 0:00:13]} 27. Qf5 {[%emt 0:00:16]} Rh6 {[%emt 0:04:57]} 28. Nb5+ {[%emt 0:00:41]} Kd8 {[%emt 0:02:14]} 29. Nxd6 {[%emt 0:00:46]} Rc7 {[%emt 0:01:28]} 30. Rad1 {[%emt 0:00:20]} Ke7 {[%emt 0:01:22]} 31. Qe5+ {[%emt 0:01:46]} Kf8 {[%emt 0:00:33]} 32. Nf5 {[%emt 0:00:16]} Kg8 {[%emt 0:02:13]} 33. Nxh6+ {[%emt 0:00:39]} Kg7 {[%emt 0:00:13]} 34. Rd8 {[%emt 0:00:21]} Rxc6 {[%emt 0:01:42]} 35. Qxg5+ {[%emt 0:00:00]} Kh7 {[%emt 0:00:00]} 36. Nf5 {[%emt 0:00:00] Weighted Error Value: White=0.11 (very precise) /Black=0.63} 1-0

[Event "1st FIDE Olympiad DIS 2023"]
[Site "Belgrade"]
[Date "2023.01.30"]
[Round "1.11"]
[White "Bulatovic, Luka"]
[Black "Cajzler, Hinko"]
[Result "0-1"]
[ECO "C02"]
[WhiteElo "1707"]
[BlackElo "2060"]
[Annotator "TA"]
[PlyCount "85"]
[EventDate "2023.01.30"]
[EventType "team-tourn"]
[EventCountry "SRB"]
[SourceTitle "playchess.com"]
[Source "ChessBase"]
[SourceQuality "1"]
[WhiteTeam "Serbia"]
[BlackTeam "Croatia"]
[WhiteTeamCountry "SRB"]
[BlackTeamCountry "CRO"]
[TimeControl "40/5400+30:1800+30"]

{[%evp 12,85,44,-23,23,37,47,0,0,0,0,0,-5,-51,-47,-34,-40,-64,-50,-66,-56,-84,-19,-24,0,0,0,0,0,-3,0,0,7,0,0,-78,-78,-78,-78,-78,-78,-78,-78,-248,-134,-134,-134,-248,-248,-251,-248,-262,-262,-248,-251,-459,-267,-627,-304,-552,-293,-721,-638,-826,-815,-762,-679,-6102,-6136,-5635,-5293,-3254,-2941,-2000,-1808,-29986]} 1. e4 {[%emt 0:00:01]} e6 {[%emt 0:00:00]} 2. d4 {[%emt 0:00:17]} d5 {[%emt 0:00:00]} 3. e5 {[%emt 0:00:09]} c5 {[%emt 0:00:12]} 4. c3 {[%emt 0:00:17]} Qb6 {[%emt 0:00:09]} 5. Nf3 {[%emt 0:00:14]} Nc6 {[%emt 0:00:23]} 6. Bd3 {[%emt 0:00:09]} Bd7 {[%emt 0:00:55]} 7. Bc2 {[%emt 0:01:07]} (7. dxc5 $14 Bxc5 8. O-O) 7... Nh6 {[%emt 0:00:35] C02: French: Advance Variation.} (7... cxd4 $142 8. cxd4 Nb4) 8. O-O $11 {[%emt 0:04:44]} a5 {[%emt 0:03:00] [#]} 9. Na3 $146 {[%emt 0:00:14]} (9. dxc5 $14 Bxc5 10. Bxh6 gxh6 11. Qc1) ({Predecessor:} 9. b3 Be7 10. Re1 Rc8 11. Be3 cxd4 12. cxd4 Nb4 13. Bd3 Ng4 14. a3 Nxe3 15. Rxe3 Nxd3 16. Rxd3 {0-1 Nguyen,T-Ha,V Hanoi op 1995}) 9... cxd4 {[%emt 0:01:21] The position is equal.} 10. cxd4 {[%emt 0:02:45]} Rc8 {[%emt 0:02:14]} 11. Nb1 {[%emt 0:00:15]} Nb4 12. Nc3 {[%emt 0:19:51]} (12. Ba4 $11) 12... Nxc2 $15 {[%emt 0:00:56]} 13. Qxc2 {[%emt 0:00:00]} Nf5 {[%emt 0:01:46]} 14. Be3 {[%emt 0:00:00]} Bb4 {[%emt 0:03:41] Black is more active.} 15. Qb3 {[%emt 0:00:00]} Qa6 {[%emt 0:00:43]} 16. Rac1 {[%emt 0:00:00]} Bxc3 {[%emt 0:00:07]} (16... O-O $17) 17. Rxc3 $11 Rxc3 {[%emt 0:10:38]} 18. Qxc3 {[%emt 0:00:00]} O-O {[%emt 0:00:00]} 19. Rc1 {[%emt 0:00:00]} h6 {[%emt 0:00:00][%cal Bh7h6,Bh6g5,Bg5g4][%mdl 32]} 20. Qd2 {[%emt 0:00:00]} Qb6 {[%emt 0:00:00]} 21. g4 {[%emt 0:00:00]} Nxe3 {[%emt 0:03:42]} 22. fxe3 {[%emt 0:00:00]} Qd8 {[%emt 0:04:49]} 23. Qc3 {[%emt 0:04:04]} (23. h4 $11) 23... f5 $17 {[%emt 0:00:23]} 24. g5 {[%emt 0:00:23]} hxg5 {[%emt 0:01:42]} 25. Qc7 {[%emt 0:01:54]} g4 {[%emt 0:00:11]} 26. Qxd8 {[%emt 0:01:16]} Rxd8 {[%emt 0:01:20][%mdl 4096] Endgame KRB-KRN} 27. Nh4 {[%emt 0:02:20] Now White is beyond hope.} (27. Ng5 $17 {keeps fighting.}) 27... Rc8 {[%emt 0:00:05]} (27... g5 $19 28. Ng2 Rc8 29. Rxc8+ Bxc8) 28. Rxc8+ {[%emt 0:00:18]} Bxc8 {[%emt 0:01:20] KB-KN} 29. Kf2 {[%emt 0:00:05]} (29. Ng6 $17 Kh7 30. Nf4) 29... g5 $19 {[%emt 0:00:19]} 30. Ng2 {[%emt 0:00:12]} Kg7 {[%emt 0:02:00]} 31. Kg3 {[%emt 0:01:33]} Bd7 {[%emt 0:00:51]} 32. Ne1 {[%emt 0:02:53]} Bb5 {[%emt 0:00:27] Dodges Nd3} 33. Nc2 $2 {[%emt 0:03:38]} (33. h4) 33... Kf7 {[%emt 0:00:23]} (33... Bc4 $142 34. b3 Bd3) 34. a3 $2 {[%emt 0:13:57]} (34. Ne1) 34... Ke7 {[%emt 1:14:22]} (34... Bd3 $142 35. Ne1 Be4) 35. Kf2 $2 {[%emt 0:00:02]} (35. Ne1) 35... Kd7 {[%emt 0:00:05] [#] And now ...Bd3 would win.} 36. Ke1 $2 {[%emt 0:03:23]} (36. Ne1) 36... Kc6 {[%emt 0:00:00] Threatens to win with ...Bd3. Black is clearly winning.} 37. Kd2 {[%emt 0:02:44]} f4 {[%emt 0:00:00]} 38. exf4 {[%emt 0:00:19]} gxf4 {[%emt 0:00:00]} 39. Ke1 {[%emt 0:00:51]} Bd3 {[%emt 0:00:00]} 40. Na1 {[%emt 0:01:31]} a4 {[%emt 0:00:00] [#] ...Kb5 would be deadly.} 41. Kd2 {[%emt 0:30:20]} Be4 {[%emt 0:10:48]} 42. b3 {[%emt 0:01:50]} Kb5 {[%emt 0:00:00]} 43. Kc3 {[%emt 0:00:46] Weighted Error Value: White=0.74/Black=0.28 (precise)} 0-1